[Event "Titled Tuesday Blitz February 07 Late 2023"]
[White "Filgueira, Hernan"]
[Black "Ramirez, Alejandro"]
[WhiteFideId "101770"]
[BlackFideId "6500617"]
[WhiteElo "2283"]
[BlackElo "2572"]
[Result "0-1"]
[Round "02"]
[TimeControl "180+2"]
[Date "2023.02.07"]
[WhiteClock "0:00:16"]
[BlackClock "0:00:25"]

1. d4 {[%clk 0:02:59]}  Nf6 {[%clk 0:03:00]} 2. Nf3 {[%clk 0:02:58]}  e6 {[%clk 0:02:59]} 3. Bg5 {[%clk 0:02:57]}  Be7 {[%clk 0:02:58]} 4. e3 {[%clk 0:02:56]}  O-O {[%clk 0:02:58]} 5. Nbd2 {[%clk 0:02:57]}  d6 {[%clk 0:02:48]} 6. c3 {[%clk 0:02:51]}  Nbd7 {[%clk 0:02:48]} 7. Be2 {[%clk 0:02:50]}  b6 {[%clk 0:02:48]} 8. h3 {[%clk 0:02:50]}  Bb7 {[%clk 0:02:48]} 9. O-O {[%clk 0:02:50]}  Nh5 {[%clk 0:02:46]} 10. Bxe7 {[%clk 0:02:48]}  Qxe7 {[%clk 0:02:47]} 11. a4 {[%clk 0:02:46]}  a6 {[%clk 0:02:44]} 12. Ne1 {[%clk 0:02:40]}  Nhf6 {[%clk 0:02:44]} 13. Bf3 {[%clk 0:02:40]}  d5 {[%clk 0:02:41]} 14. Nd3 {[%clk 0:02:37]}  e5 {[%clk 0:02:41]} 15. dxe5 {[%clk 0:02:37]}  Nxe5 {[%clk 0:02:42]} 16. Nxe5 {[%clk 0:02:37]}  Qxe5 {[%clk 0:02:43]} 17. a5 {[%clk 0:02:35]}  b5 {[%clk 0:02:41]} 18. Nb3 {[%clk 0:02:31]}  Nd7 {[%clk 0:02:39]} 19. Qd2 {[%clk 0:02:21]}  Rad8 {[%clk 0:02:40]} 20. Rad1 {[%clk 0:02:13]}  c6 {[%clk 0:02:40]} 21. g3 {[%clk 0:02:09]}  Rfe8 {[%clk 0:02:30]} 22. Bg2 {[%clk 0:02:09]}  Qc7 {[%clk 0:02:26]} 23. Ra1 {[%clk 0:02:04]}  c5 {[%clk 0:02:22]} 24. Rfc1 {[%clk 0:01:58]}  Ne5 {[%clk 0:02:20]} 25. Qd1 {[%clk 0:01:49]}  g6 {[%clk 0:02:15]} 26. Nd2 {[%clk 0:01:45]}  Nc4 {[%clk 0:01:49]} 27. b4 {[%clk 0:01:27]}  cxb4 {[%clk 0:01:15]} 28. cxb4 {[%clk 0:01:24]}  d4 {[%clk 0:01:16]} 29. Nxc4 {[%clk 0:01:02]}  Bxg2 {[%clk 0:00:55]} 30. Kxg2 {[%clk 0:00:37]}  dxe3 {[%clk 0:00:51]} 31. Nxe3 {[%clk 0:00:33]}  Rxd1 {[%clk 0:00:50]} 32. Rxd1 {[%clk 0:00:33]}  Kg7 {[%clk 0:00:45]} 33. Rd4 {[%clk 0:00:28]}  Qb7+ {[%clk 0:00:44]} 34. Kg1 {[%clk 0:00:27]}  Qf3 {[%clk 0:00:43]} 35. Rad1 {[%clk 0:00:25]}  Rxe3 {[%clk 0:00:42]} 36. fxe3 {[%clk 0:00:25]}  Qxg3+ {[%clk 0:00:43]} 37. Kf1 {[%clk 0:00:24]}  Qf3+ {[%clk 0:00:44]} 38. Kg1 {[%clk 0:00:22]}  Qxh3 {[%clk 0:00:41]} 39. R1d3 {[%clk 0:00:20]}  Qg3+ {[%clk 0:00:41]} 40. Kf1 {[%clk 0:00:20]}  h5 {[%clk 0:00:42]} 41. e4 {[%clk 0:00:20]}  Qe5 {[%clk 0:00:38]} 42. Kg2 {[%clk 0:00:21]}  g5 {[%clk 0:00:36]} 43. Kf3 {[%clk 0:00:19]}  g4+ {[%clk 0:00:36]} 44. Kg2 {[%clk 0:00:20]}  h4 {[%clk 0:00:36]} 45. Rd5 {[%clk 0:00:19]}  h3+ {[%clk 0:00:32]} 46. Kg1 {[%clk 0:00:18]}  Qxe4 {[%clk 0:00:30]} 47. Rd2 {[%clk 0:00:18]}  f5 {[%clk 0:00:26]} 48. R5d4 {[%clk 0:00:16]}  Qe3+ {[%clk 0:00:24]} 49. Kh2 {[%clk 0:00:17]}  Qe5+ {[%clk 0:00:24]} 50. Kg1 {[%clk 0:00:17]}  g3 {[%clk 0:00:24]} 51. Rd7+ {[%clk 0:00:16]}  Kg6 {[%clk 0:00:24]} 52. R2d6+ {[%clk 0:00:16]}  Kg5 {[%clk 0:00:25]} 0-1


[Site "https://www.chess.com"]

[Event "Titled Tuesday Blitz February 07 Late 2023"]
[White "Kavutskiy, Konstantin"]
[Black "Riehle, Marco"]
[WhiteFideId "2026384"]
[BlackFideId "12904392"]
[WhiteElo "2414"]
[BlackElo "2368"]
[Result "1-0"]
[Round "02"]
[TimeControl "180+2"]
[Date "2023.02.07"]
[WhiteClock "0:00:45"]
[BlackClock "0:00:25"]

1. d4 {[%clk 0:03:00]}  d5 {[%clk 0:02:59]} 2. c4 {[%clk 0:03:00]}  e6 {[%clk 0:02:59]} 3. Nf3 {[%clk 0:03:00]}  Nf6 {[%clk 0:02:58]} 4. Nc3 {[%clk 0:03:00]}  c5 {[%clk 0:02:58]} 5. cxd5 {[%clk 0:03:00]}  Nxd5 {[%clk 0:02:59]} 6. e4 {[%clk 0:02:59]}  Nxc3 {[%clk 0:02:59]} 7. bxc3 {[%clk 0:03:00]}  cxd4 {[%clk 0:03:00]} 8. cxd4 {[%clk 0:03:01]}  Bb4+ {[%clk 0:03:00]} 9. Bd2 {[%clk 0:03:02]}  Bxd2+ {[%clk 0:03:01]} 10. Qxd2 {[%clk 0:03:02]}  O-O {[%clk 0:03:01]} 11. Bc4 {[%clk 0:02:59]}  b6 {[%clk 0:03:01]} 12. O-O {[%clk 0:02:59]}  Bb7 {[%clk 0:03:00]} 13. Rfe1 {[%clk 0:02:59]}  Nc6 {[%clk 0:03:00]} 14. Rad1 {[%clk 0:02:59]}  Rc8 {[%clk 0:03:00]} 15. Bb3 {[%clk 0:02:52]}  Na5 {[%clk 0:02:57]} 16. Bc2 {[%clk 0:02:48]}  Nc4 {[%clk 0:02:57]} 17. Qf4 {[%clk 0:02:44]}  Qf6 {[%clk 0:02:56]} 18. Qg3 {[%clk 0:02:32]}  Ne3 {[%clk 0:02:51]} 19. e5 {[%clk 0:02:17]}  Qh6 {[%clk 0:02:50]} 20. Bxh7+ {[%clk 0:02:13]}  Qxh7 {[%clk 0:02:51]} 21. Rxe3 {[%clk 0:01:58]}  Rc2 {[%clk 0:02:48]} 22. Ng5 {[%clk 0:01:50]}  Qh5 {[%clk 0:02:37]} 23. Rde1 {[%clk 0:01:41]}  Rfc8 {[%clk 0:02:18]} 24. h4 {[%clk 0:01:21]}  Rxa2 {[%clk 0:02:15]} 25. Ne4 {[%clk 0:01:11]}  Bxe4 {[%clk 0:02:11]} 26. Rxe4 {[%clk 0:01:12]}  Rcc2 {[%clk 0:02:03]} 27. Rg4 {[%clk 0:01:09]}  g6 {[%clk 0:01:58]} 28. Rf4 {[%clk 0:01:08]}  Qh6 {[%clk 0:01:41]} 29. d5 {[%clk 0:01:05]}  exd5 {[%clk 0:01:34]} 30. e6 {[%clk 0:01:05]}  fxe6 {[%clk 0:01:34]} 31. Rxe6 {[%clk 0:01:05]}  Kg7 {[%clk 0:00:50]} 32. Rff6 {[%clk 0:00:55]}  Ra3 {[%clk 0:00:28]} 33. Rxg6+ {[%clk 0:00:53]}  Kf7 {[%clk 0:00:27]} 34. Ref6+ {[%clk 0:00:48]}  Ke7 {[%clk 0:00:25]} 35. Qd6+ {[%clk 0:00:47]}  Ke8 {[%clk 0:00:25]} 36. Rg8+ {[%clk 0:00:46]}  Qf8 {[%clk 0:00:25]} 37. Rgxf8# {[%clk 0:00:45]} 1-0


[Site "https://www.chess.com"]

[Event "Titled Tuesday Blitz February 07 Late 2023"]
[White "Pakleza, Zbigniew"]
[Black "Ismagilov, Damir"]
[WhiteFideId "1119290"]
[BlackFideId "34199982"]
[WhiteElo "2494"]
[BlackElo "2156"]
[Result "1-0"]
[Round "02"]
[TimeControl "180+2"]
[Date "2023.02.07"]
[WhiteClock "0:00:36"]
[BlackClock "0:00:11"]

1. d4 {[%clk 0:03:00]}  Nf6 {[%clk 0:02:57]} 2. Nf3 {[%clk 0:03:00]}  b6 {[%clk 0:02:57]} 3. Bf4 {[%clk 0:03:00]}  Bb7 {[%clk 0:02:57]} 4. h3 {[%clk 0:03:01]}  g6 {[%clk 0:02:57]} 5. e3 {[%clk 0:03:01]}  Bg7 {[%clk 0:02:58]} 6. Be2 {[%clk 0:03:01]}  O-O {[%clk 0:02:58]} 7. O-O {[%clk 0:03:02]}  d6 {[%clk 0:02:58]} 8. c3 {[%clk 0:03:03]}  Nfd7 {[%clk 0:02:56]} 9. a4 {[%clk 0:03:02]}  e5 {[%clk 0:02:56]} 10. Bh2 {[%clk 0:03:02]}  Nc6 {[%clk 0:02:52]} 11. Nbd2 {[%clk 0:02:59]}  a5 {[%clk 0:02:45]} 12. Nc4 {[%clk 0:02:49]}  e4 {[%clk 0:02:41]} 13. Nfd2 {[%clk 0:02:48]}  f5 {[%clk 0:02:33]} 14. b4 {[%clk 0:02:00]}  d5 {[%clk 0:02:28]} 15. b5 {[%clk 0:01:52]}  Ne7 {[%clk 0:02:18]} 16. Na3 {[%clk 0:01:49]}  h6 {[%clk 0:02:14]} 17. c4 {[%clk 0:01:47]}  Kh7 {[%clk 0:02:13]} 18. Rc1 {[%clk 0:01:46]}  Nf6 {[%clk 0:02:07]} 19. Qb3 {[%clk 0:01:35]}  dxc4 {[%clk 0:01:31]} 20. Naxc4 {[%clk 0:01:36]}  Bd5 {[%clk 0:01:29]} 21. Qb1 {[%clk 0:01:35]}  Rc8 {[%clk 0:01:28]} 22. Rc2 {[%clk 0:01:26]}  Be6 {[%clk 0:01:14]} 23. Rfc1 {[%clk 0:01:22]}  Ned5 {[%clk 0:01:15]} 24. Ne5 {[%clk 0:01:20]}  Nb4 {[%clk 0:01:12]} 25. Nc6 {[%clk 0:01:14]}  Nxc6 {[%clk 0:01:09]} 26. Rxc6 {[%clk 0:01:15]}  Bd5 {[%clk 0:00:30]} 27. Rxc7 {[%clk 0:01:15]}  Rxc7 {[%clk 0:00:17]} 28. Bxc7 {[%clk 0:01:16]}  Qd7 {[%clk 0:00:16]} 29. Bxb6 {[%clk 0:01:15]}  g5 {[%clk 0:00:16]} 30. Rc7 {[%clk 0:01:09]}  Qd6 {[%clk 0:00:16]} 31. Bxa5 {[%clk 0:01:10]}  f4 {[%clk 0:00:15]} 32. Qb4 {[%clk 0:01:10]}  Qxb4 {[%clk 0:00:14]} 33. Bxb4 {[%clk 0:01:10]}  Ra8 {[%clk 0:00:14]} 34. a5 {[%clk 0:01:07]}  fxe3 {[%clk 0:00:15]} 35. fxe3 {[%clk 0:01:07]}  Kg6 {[%clk 0:00:15]} 36. a6 {[%clk 0:01:04]}  Ne8 {[%clk 0:00:15]} 37. Rd7 {[%clk 0:00:58]}  Be6 {[%clk 0:00:15]} 38. Re7 {[%clk 0:00:55]}  Kf6 {[%clk 0:00:15]} 39. b6 {[%clk 0:00:47]}  Bf8 {[%clk 0:00:13]} 40. Nxe4+ {[%clk 0:00:39]}  Kf5 {[%clk 0:00:12]} 41. Ng3+ {[%clk 0:00:37]}  Kf6 {[%clk 0:00:12]} 42. Nh5+ {[%clk 0:00:37]}  Kf5 {[%clk 0:00:11]} 43. Bd3# {[%clk 0:00:36]} 1-0


[Site "https://www.chess.com"]

[Event "Titled Tuesday Blitz February 07 Late 2023"]
[White "Avila Pavas, Santiago"]
[Black "Gurevich, Dmitry"]
[WhiteFideId "4437128"]
[BlackFideId "2000407"]
[WhiteElo "2522"]
[BlackElo "2393"]
[Result "0-1"]
[Round "02"]
[TimeControl "180+2"]
[Date "2023.02.07"]
[WhiteClock "0:00:02"]
[BlackClock "0:00:22"]

1. d4 {[%clk 0:03:00]}  Nf6 {[%clk 0:02:58]} 2. Nf3 {[%clk 0:03:01]}  e6 {[%clk 0:02:58]} 3. Bf4 {[%clk 0:03:01]}  b6 {[%clk 0:02:57]} 4. e3 {[%clk 0:03:01]}  Bb7 {[%clk 0:02:56]} 5. Nbd2 {[%clk 0:03:02]}  Be7 {[%clk 0:02:56]} 6. Bd3 {[%clk 0:03:02]}  c5 {[%clk 0:02:55]} 7. c3 {[%clk 0:03:02]}  cxd4 {[%clk 0:02:51]} 8. exd4 {[%clk 0:03:01]}  O-O {[%clk 0:02:50]} 9. Qe2 {[%clk 0:03:01]}  d6 {[%clk 0:02:49]} 10. O-O-O {[%clk 0:03:02]}  a6 {[%clk 0:02:49]} 11. h4 {[%clk 0:03:01]}  Nbd7 {[%clk 0:02:44]} 12. Kb1 {[%clk 0:02:59]}  b5 {[%clk 0:02:37]} 13. Ng5 {[%clk 0:02:51]}  b4 {[%clk 0:02:31]} 14. cxb4 {[%clk 0:02:46]}  Qb6 {[%clk 0:02:22]} 15. Ndf3 {[%clk 0:02:35]}  h6 {[%clk 0:02:07]} 16. a3 {[%clk 0:02:24]}  a5 {[%clk 0:02:03]} 17. b5 {[%clk 0:02:23]}  a4 {[%clk 0:01:56]} 18. Nxe6 {[%clk 0:01:31]}  fxe6 {[%clk 0:01:55]} 19. Qxe6+ {[%clk 0:01:32]}  Kh8 {[%clk 0:01:27]} 20. Qxe7 {[%clk 0:01:32]}  Nd5 {[%clk 0:01:26]} 21. Qxd7 {[%clk 0:01:28]}  Nxf4 {[%clk 0:01:21]} 22. Ng5 {[%clk 0:01:06]}  Nxd3 {[%clk 0:01:05]} 23. Rxd3 {[%clk 0:01:07]}  Rad8 {[%clk 0:00:58]} 24. Qe6 {[%clk 0:00:54]}  Qxb5 {[%clk 0:00:51]} 25. Qg6 {[%clk 0:00:51]}  Qf5 {[%clk 0:00:46]} 26. Qxf5 {[%clk 0:00:38]}  Rxf5 {[%clk 0:00:45]} 27. Ne6 {[%clk 0:00:25]}  Be4 {[%clk 0:00:36]} 28. Nxd8 {[%clk 0:00:24]}  Bxd3+ {[%clk 0:00:36]} 29. Ka1 {[%clk 0:00:24]}  Rxf2 {[%clk 0:00:36]} 30. Nb7 {[%clk 0:00:21]}  Rxg2 {[%clk 0:00:33]} 31. Nxd6 {[%clk 0:00:21]}  h5 {[%clk 0:00:31]} 32. Rd1 {[%clk 0:00:21]}  Bc2 {[%clk 0:00:30]} 33. Rc1 {[%clk 0:00:19]}  Bb3 {[%clk 0:00:28]} 34. Ne4 {[%clk 0:00:16]}  Kh7 {[%clk 0:00:26]} 35. Nc5 {[%clk 0:00:15]}  g5 {[%clk 0:00:24]} 36. Nxb3 {[%clk 0:00:15]}  axb3 {[%clk 0:00:23]} 37. hxg5 {[%clk 0:00:14]}  h4 {[%clk 0:00:23]} 38. Rh1 {[%clk 0:00:14]}  Kg6 {[%clk 0:00:23]} 39. d5 {[%clk 0:00:08]}  h3 {[%clk 0:00:23]} 40. d6 {[%clk 0:00:02]}  h2 {[%clk 0:00:22]} 0-1


[Site "https://www.chess.com"]

[Event "Titled Tuesday Blitz February 07 Late 2023"]
[White "Landaw, Julian"]
[Black "Boros, Denes"]
[WhiteFideId "2023342"]
[BlackFideId "722340"]
[WhiteElo "2318"]
[BlackElo "2406"]
[Result "0-1"]
[Round "02"]
[TimeControl "180+2"]
[Date "2023.02.07"]
[WhiteClock "0:00:07"]
[BlackClock "0:00:11"]

1. e4 {[%clk 0:03:00]}  g6 {[%clk 0:03:00]} 2. Nc3 {[%clk 0:03:01]}  Bg7 {[%clk 0:02:58]} 3. g3 {[%clk 0:03:01]}  c6 {[%clk 0:02:56]} 4. Bg2 {[%clk 0:03:01]}  Nf6 {[%clk 0:02:57]} 5. Nge2 {[%clk 0:03:01]}  d5 {[%clk 0:02:57]} 6. d4 {[%clk 0:02:55]}  dxe4 {[%clk 0:02:56]} 7. Nxe4 {[%clk 0:02:54]}  Nxe4 {[%clk 0:02:53]} 8. Bxe4 {[%clk 0:02:55]}  Bg4 {[%clk 0:02:51]} 9. c3 {[%clk 0:02:54]}  Nd7 {[%clk 0:02:45]} 10. h3 {[%clk 0:02:53]}  Bf5 {[%clk 0:02:45]} 11. Bxf5 {[%clk 0:02:52]}  gxf5 {[%clk 0:02:46]} 12. Nf4 {[%clk 0:02:50]}  Qa5 {[%clk 0:02:39]} 13. Qb3 {[%clk 0:02:36]}  Qa6 {[%clk 0:02:37]} 14. Nh5 {[%clk 0:02:30]}  Bf8 {[%clk 0:02:33]} 15. Bg5 {[%clk 0:02:24]}  Rg8 {[%clk 0:02:28]} 16. Be3 {[%clk 0:02:15]}  Nb6 {[%clk 0:02:22]} 17. O-O-O {[%clk 0:02:10]}  Nd5 {[%clk 0:02:09]} 18. Rhe1 {[%clk 0:02:06]}  b5 {[%clk 0:02:01]} 19. Bf4 {[%clk 0:01:47]}  O-O-O {[%clk 0:01:47]} 20. Kb1 {[%clk 0:01:21]}  Rg6 {[%clk 0:01:39]} 21. Bc1 {[%clk 0:00:48]}  Bh6 {[%clk 0:01:26]} 22. Qc2 {[%clk 0:00:41]}  e6 {[%clk 0:01:24]} 23. a3 {[%clk 0:00:26]}  Kb7 {[%clk 0:01:20]} 24. Rg1 {[%clk 0:00:23]}  Rdg8 {[%clk 0:01:14]} 25. Qe2 {[%clk 0:00:23]}  Qxa3 {[%clk 0:00:44]} 26. Bxh6 {[%clk 0:00:16]}  Rxh6 {[%clk 0:00:43]} 27. Qd2 {[%clk 0:00:16]}  Qf8 {[%clk 0:00:41]} 28. Nf4 {[%clk 0:00:13]}  Nxf4 {[%clk 0:00:37]} 29. Qxf4 {[%clk 0:00:14]}  Rxh3 {[%clk 0:00:37]} 30. Rh1 {[%clk 0:00:15]}  Rxh1 {[%clk 0:00:29]} 31. Rxh1 {[%clk 0:00:16]}  Rg7 {[%clk 0:00:28]} 32. Qe5 {[%clk 0:00:16]}  a6 {[%clk 0:00:22]} 33. Rh4 {[%clk 0:00:17]}  h6 {[%clk 0:00:21]} 34. Ka2 {[%clk 0:00:14]}  Rg5 {[%clk 0:00:19]} 35. Qf6 {[%clk 0:00:13]}  Rg6 {[%clk 0:00:19]} 36. Qe5 {[%clk 0:00:13]}  Qd8 {[%clk 0:00:19]} 37. Qf4 {[%clk 0:00:09]}  Qf6 {[%clk 0:00:15]} 38. Qd6 {[%clk 0:00:09]}  Rg8 {[%clk 0:00:12]} 39. Qd7+ {[%clk 0:00:09]}  Kb6 {[%clk 0:00:13]} 40. d5 {[%clk 0:00:09]}  exd5 {[%clk 0:00:11]} 41. Rf4 {[%clk 0:00:08]}  Rd8 {[%clk 0:00:11]} 42. Qxf5 {[%clk 0:00:08]}  Qxf5 {[%clk 0:00:12]} 43. Rxf5 {[%clk 0:00:09]}  Rd7 {[%clk 0:00:12]} 44. Rf6 {[%clk 0:00:10]}  b4 {[%clk 0:00:10]} 45. Rxh6 {[%clk 0:00:10]}  Kb5 {[%clk 0:00:10]} 46. cxb4 {[%clk 0:00:10]}  d4 {[%clk 0:00:11]} 47. Rf6 {[%clk 0:00:11]}  d3 {[%clk 0:00:11]} 48. Kb3 {[%clk 0:00:07]}  d2 {[%clk 0:00:11]} 0-1


[Site "https://www.chess.com"]

[Event "Titled Tuesday Blitz February 07 Late 2023"]
[White "Borges Feria, Yasel"]
[Black "Vega Gutierrez, Sabrina"]
[WhiteFideId "3504921"]
[BlackFideId "2219026"]
[WhiteElo "2439"]
[BlackElo "2377"]
[Result "1-0"]
[Round "02"]
[TimeControl "180+2"]
[Date "2023.02.07"]
[WhiteClock "0:00:44"]
[BlackClock "0:00:02"]

1. e4 {[%clk 0:03:00]}  c5 {[%clk 0:02:59]} 2. Nf3 {[%clk 0:03:01]}  e6 {[%clk 0:02:59]} 3. d4 {[%clk 0:03:00]}  cxd4 {[%clk 0:03:00]} 4. Nxd4 {[%clk 0:02:59]}  Nf6 {[%clk 0:03:00]} 5. Nc3 {[%clk 0:02:59]}  d6 {[%clk 0:03:01]} 6. g4 {[%clk 0:02:57]}  h6 {[%clk 0:02:59]} 7. Rg1 {[%clk 0:02:53]}  Nc6 {[%clk 0:02:58]} 8. Be3 {[%clk 0:02:50]}  Bd7 {[%clk 0:02:30]} 9. h3 {[%clk 0:02:42]}  a6 {[%clk 0:02:24]} 10. Qe2 {[%clk 0:02:36]}  Qc7 {[%clk 0:02:21]} 11. O-O-O {[%clk 0:02:31]}  b5 {[%clk 0:02:17]} 12. a3 {[%clk 0:02:15]}  Ne5 {[%clk 0:02:14]} 13. f4 {[%clk 0:02:12]}  Nc4 {[%clk 0:02:13]} 14. Rd3 {[%clk 0:02:06]}  Nxe3 {[%clk 0:01:55]} 15. Qxe3 {[%clk 0:02:04]}  Rc8 {[%clk 0:01:40]} 16. Kb1 {[%clk 0:02:01]}  Be7 {[%clk 0:01:35]} 17. Be2 {[%clk 0:01:58]}  g5 {[%clk 0:01:32]} 18. f5 {[%clk 0:01:43]}  Qc5 {[%clk 0:00:49]} 19. fxe6 {[%clk 0:01:32]}  fxe6 {[%clk 0:00:49]} 20. Rgd1 {[%clk 0:01:25]}  O-O {[%clk 0:00:35]} 21. Qg3 {[%clk 0:01:19]}  Qe5 {[%clk 0:00:15]} 22. Qxe5 {[%clk 0:01:15]}  dxe5 {[%clk 0:00:16]} 23. Nf3 {[%clk 0:01:15]}  Bc6 {[%clk 0:00:15]} 24. Nxe5 {[%clk 0:01:09]}  Bxe4 {[%clk 0:00:15]} 25. Nxe4 {[%clk 0:01:04]}  Nxe4 {[%clk 0:00:16]} 26. Re3 {[%clk 0:01:01]}  Nc5 {[%clk 0:00:09]} 27. Ng6 {[%clk 0:00:58]}  Rf7 {[%clk 0:00:09]} 28. c4 {[%clk 0:00:54]}  Rb8 {[%clk 0:00:06]} 29. cxb5 {[%clk 0:00:48]}  axb5 {[%clk 0:00:07]} 30. Re5 {[%clk 0:00:48]}  Na4 {[%clk 0:00:04]} 31. Nxe7+ {[%clk 0:00:43]}  Rxe7 {[%clk 0:00:02]} 32. Rxb5 {[%clk 0:00:44]} 1-0


[Site "https://www.chess.com"]

[Event "Titled Tuesday Blitz February 07 Late 2023"]
[White "Estrada Nieto, Julian"]
[Black "Talibov, Shiroghlan"]
[WhiteFideId "5101018"]
[BlackFideId "13429078"]
[WhiteElo "2215"]
[BlackElo "2359"]
[Result "1/2-1/2"]
[Round "02"]
[TimeControl "180+2"]
[Date "2023.02.07"]
[WhiteClock "0:00:09"]
[BlackClock "0:00:16"]

1. e4 {[%clk 0:03:00]}  c5 {[%clk 0:02:58]} 2. Nf3 {[%clk 0:03:01]}  d6 {[%clk 0:02:58]} 3. Bb5+ {[%clk 0:02:59]}  Nc6 {[%clk 0:02:55]} 4. d4 {[%clk 0:02:56]}  cxd4 {[%clk 0:02:53]} 5. Qxd4 {[%clk 0:02:57]}  Bd7 {[%clk 0:02:53]} 6. Bxc6 {[%clk 0:02:53]}  Bxc6 {[%clk 0:02:54]} 7. Nc3 {[%clk 0:02:53]}  e6 {[%clk 0:02:50]} 8. Bg5 {[%clk 0:02:44]}  Qa5 {[%clk 0:02:47]} 9. O-O-O {[%clk 0:02:41]}  h6 {[%clk 0:02:39]} 10. Bh4 {[%clk 0:02:29]}  e5 {[%clk 0:02:34]} 11. Qd2 {[%clk 0:02:23]}  g5 {[%clk 0:02:32]} 12. Bg3 {[%clk 0:02:24]}  Nf6 {[%clk 0:02:30]} 13. Kb1 {[%clk 0:02:22]}  Be7 {[%clk 0:02:20]} 14. h4 {[%clk 0:02:20]}  g4 {[%clk 0:02:15]} 15. Nh2 {[%clk 0:02:14]}  h5 {[%clk 0:02:10]} 16. Nf1 {[%clk 0:02:13]}  O-O-O {[%clk 0:01:29]} 17. Ne3 {[%clk 0:02:10]}  Rhe8 {[%clk 0:01:25]} 18. Nf5 {[%clk 0:02:04]}  Bf8 {[%clk 0:01:18]} 19. f3 {[%clk 0:02:04]}  d5 {[%clk 0:01:14]} 20. exd5 {[%clk 0:01:43]}  Nxd5 {[%clk 0:01:09]} 21. Nxd5 {[%clk 0:01:34]}  Qxd2 {[%clk 0:01:05]} 22. Rxd2 {[%clk 0:01:32]}  Rxd5 {[%clk 0:01:05]} 23. Rxd5 {[%clk 0:01:24]}  Bxd5 {[%clk 0:01:06]} 24. Rd1 {[%clk 0:01:21]}  Bc6 {[%clk 0:01:02]} 25. fxg4 {[%clk 0:01:12]}  hxg4 {[%clk 0:01:03]} 26. h5 {[%clk 0:00:50]}  Be4 {[%clk 0:00:49]} 27. Ne3 {[%clk 0:00:32]}  f5 {[%clk 0:00:42]} 28. Re1 {[%clk 0:00:18]}  b5 {[%clk 0:00:23]} 29. Nxg4 {[%clk 0:00:18]}  Bd6 {[%clk 0:00:18]} 30. Nf6 {[%clk 0:00:13]}  Rh8 {[%clk 0:00:18]} 31. Nxe4 {[%clk 0:00:11]}  fxe4 {[%clk 0:00:18]} 32. Rxe4 {[%clk 0:00:11]}  Rxh5 {[%clk 0:00:18]} 33. a3 {[%clk 0:00:11]}  Rg5 {[%clk 0:00:18]} 34. Bh2 {[%clk 0:00:09]}  Rh5 {[%clk 0:00:17]} 35. Bg3 {[%clk 0:00:09]}  Rg5 {[%clk 0:00:18]} 36. Bh2 {[%clk 0:00:09]}  Rh5 {[%clk 0:00:16]} 37. Bg3 {[%clk 0:00:09]} 1/2-1/2


[Site "https://www.chess.com"]

[Event "Titled Tuesday Blitz February 07 Late 2023"]
[White "Mikhalsky, Vladimir"]
[Black "Nogerbek, Kazybek"]
[WhiteFideId "14144352"]
[BlackFideId "13710427"]
[WhiteElo "2219"]
[BlackElo "2474"]
[Result "0-1"]
[Round "02"]
[TimeControl "180+2"]
[Date "2023.02.07"]
[WhiteClock "0:00:01"]
[BlackClock "0:01:23"]

1. d4 {[%clk 0:02:44]}  d5 {[%clk 0:02:55]} 2. c4 {[%clk 0:02:44]}  dxc4 {[%clk 0:02:56]} 3. Nf3 {[%clk 0:02:42]}  Nf6 {[%clk 0:02:54]} 4. e3 {[%clk 0:02:41]}  g6 {[%clk 0:02:53]} 5. Bxc4 {[%clk 0:02:40]}  Bg7 {[%clk 0:02:53]} 6. O-O {[%clk 0:02:39]}  O-O {[%clk 0:02:52]} 7. Nc3 {[%clk 0:02:39]}  a6 {[%clk 0:02:47]} 8. a4 {[%clk 0:02:37]}  Nbd7 {[%clk 0:02:46]} 9. a5 {[%clk 0:02:37]}  c5 {[%clk 0:02:46]} 10. Qb3 {[%clk 0:02:30]}  cxd4 {[%clk 0:02:43]} 11. exd4 {[%clk 0:00:26]}  b5 {[%clk 0:02:27]} 12. axb6 {[%clk 0:00:25]}  Nxb6 {[%clk 0:02:21]} 13. Be2 {[%clk 0:00:23]}  Be6 {[%clk 0:02:13]} 14. Qb4 {[%clk 0:00:23]}  Nfd5 {[%clk 0:02:10]} 15. Nxd5 {[%clk 0:00:22]}  Nxd5 {[%clk 0:02:11]} 16. Qa5 {[%clk 0:00:22]}  Qxa5 {[%clk 0:02:05]} 17. Rxa5 {[%clk 0:00:20]}  Nb4 {[%clk 0:02:05]} 18. Bd2 {[%clk 0:00:19]}  Nc6 {[%clk 0:02:04]} 19. Rxa6 {[%clk 0:00:18]}  Rxa6 {[%clk 0:02:04]} 20. Bxa6 {[%clk 0:00:18]}  Bd5 {[%clk 0:02:05]} 21. Bc3 {[%clk 0:00:15]}  Bxf3 {[%clk 0:02:03]} 22. gxf3 {[%clk 0:00:15]}  Nxd4 {[%clk 0:02:04]} 23. Bxd4 {[%clk 0:00:15]}  Bxd4 {[%clk 0:02:05]} 24. b4 {[%clk 0:00:14]}  Rb8 {[%clk 0:02:04]} 25. Rb1 {[%clk 0:00:14]}  Kg7 {[%clk 0:02:03]} 26. Bd3 {[%clk 0:00:13]}  Bb6 {[%clk 0:02:02]} 27. b5 {[%clk 0:00:12]}  Rd8 {[%clk 0:02:03]} 28. Rb3 {[%clk 0:00:10]}  h5 {[%clk 0:02:01]} 29. Kg2 {[%clk 0:00:10]}  Kf6 {[%clk 0:02:01]} 30. h3 {[%clk 0:00:09]}  e6 {[%clk 0:02:01]} 31. Rc3 {[%clk 0:00:06]}  Ra8 {[%clk 0:02:01]} 32. Rc2 {[%clk 0:00:05]}  Ra3 {[%clk 0:02:00]} 33. Bf1 {[%clk 0:00:05]}  Ke5 {[%clk 0:02:00]} 34. Rc6 {[%clk 0:00:04]}  Bd4 {[%clk 0:02:00]} 35. b6 {[%clk 0:00:04]}  Ra2 {[%clk 0:02:00]} 36. b7 {[%clk 0:00:04]}  Rxf2+ {[%clk 0:02:01]} 37. Kg3 {[%clk 0:00:04]}  Rb2 {[%clk 0:02:01]} 38. Ba6 {[%clk 0:00:04]}  g5 {[%clk 0:02:01]} 39. h4 {[%clk 0:00:01]}  Kf6 {[%clk 0:01:53]} 40. hxg5+ {[%clk 0:00:01]}  Kxg5 {[%clk 0:01:54]} 41. f4+ {[%clk 0:00:02]}  Kf6 {[%clk 0:01:54]} 42. Rc8 {[%clk 0:00:02]}  h4+ {[%clk 0:01:35]} 43. Kf3 {[%clk 0:00:02]}  Rb3+ {[%clk 0:01:24]} 44. Ke4 {[%clk 0:00:02]}  Ba7 {[%clk 0:01:23]} 45. Ra8 {[%clk 0:00:01]}  Re3# {[%clk 0:01:23]} 0-1


[Site "https://www.chess.com"]